[Event "*** SCC Grand Prix: Titled Tuesday Blitz"]
[Site "Chess.com"]
[Date "2020.07.21"]
[Round "7"]
[White "giantslayer83"]
[Black "FairChess_on_YouTube"]
[Result "0-1"]
[WhiteElo "2740"]
[BlackElo "2988"]
[TimeControl "180+1"]
[EndTime "11:18:02 PDT"]
[Termination "FairChess_on_YouTube won on time"]

1. d4 {[%clk 0:03:00.9]} 1... Nf6 {[%clk 0:02:59.3]} 2. c4 {[%clk 0:03:00.5]}
2... e6 {[%clk 0:02:58]} 3. Nf3 {[%clk 0:03:00.4]} 3... b6 {[%clk 0:02:56.9]} 4.
a3 {[%clk 0:02:59.9]} 4... Bb7 {[%clk 0:02:53]} 5. Nc3 {[%clk 0:02:59.3]} 5...
d5 {[%clk 0:02:52.8]} 6. cxd5 {[%clk 0:02:56.2]} 6... Nxd5 {[%clk 0:02:53.7]} 7.
e3 {[%clk 0:02:50.2]} 7... Be7 {[%clk 0:02:50.5]} 8. Bd3 {[%clk 0:02:50.2]} 8...
O-O {[%clk 0:02:50.2]} 9. e4 {[%clk 0:02:50.5]} 9... Nxc3 {[%clk 0:02:49.1]} 10.
bxc3 {[%clk 0:02:51.4]} 10... c5 {[%clk 0:02:48]} 11. O-O {[%clk 0:02:51.2]}
11... Nd7 {[%clk 0:02:44.2]} 12. Qe2 {[%clk 0:02:45.6]} 12... Rc8 {[%clk
0:02:35.6]} 13. Bb2 {[%clk 0:02:41.1]} 13... Qc7 {[%clk 0:02:30]} 14. Rad1
{[%clk 0:02:34.6]} 14... Qf4 {[%clk 0:02:27.3]} 15. d5 {[%clk 0:02:13.2]} 15...
exd5 {[%clk 0:01:28.4]} 16. exd5 {[%clk 0:02:14.1]} 16... Bd6 {[%clk 0:01:28.4]}
17. c4 {[%clk 0:02:11.9]} 17... Rfe8 {[%clk 0:01:21.6]} 18. Qc2 {[%clk
0:01:52.9]} 18... Nf8 {[%clk 0:01:17.7]} 19. Rfe1 {[%clk 0:01:49.8]} 19... Qh6
{[%clk 0:00:55.7]} 20. Qa4 {[%clk 0:01:15.2]} 20... Rxe1+ {[%clk 0:00:42.9]} 21.
Rxe1 {[%clk 0:01:16.1]} 21... a6 {[%clk 0:00:29.6]} 22. Qb3 {[%clk 0:00:59.3]}
22... Rb8 {[%clk 0:00:19.4]} 23. a4 {[%clk 0:00:20.6]} 23... Ng6 {[%clk
0:00:18.6]} 24. Bf5 {[%clk 0:00:16.7]} 24... Nf4 {[%clk 0:00:14.9]} 25. g3
{[%clk 0:00:15.9]} 25... Nh3+ {[%clk 0:00:13.4]} 26. Kg2 {[%clk 0:00:16]} 26...
Ng5 {[%clk 0:00:09.5]} 27. h4 {[%clk 0:00:15.8]} 27... Nxf3 {[%clk 0:00:09.2]}
28. Qxf3 {[%clk 0:00:16.7]} 28... b5 {[%clk 0:00:08.4]} 29. axb5 {[%clk
0:00:14.2]} 29... axb5 {[%clk 0:00:09.3]} 30. Bc1 {[%clk 0:00:14.4]} 30... Qf6
{[%clk 0:00:07.6]} 31. Bg5 {[%clk 0:00:13.3]} 31... Qd4 {[%clk 0:00:07.6]} 32.
Re4 {[%clk 0:00:10.2]} 32... Qb2 {[%clk 0:00:05.5]} 33. Bf4 {[%clk 0:00:07]}
33... Qf6 {[%clk 0:00:04]} 34. Bg5 {[%clk 0:00:06.2]} 34... Qb2 {[%clk
0:00:03.9]} 35. Be7 {[%clk 0:00:05.3]} 35... Bxe7 {[%clk 0:00:02.7]} 36. Rxe7
{[%clk 0:00:06.2]} 36... Qf6 {[%clk 0:00:02.1]} 37. Rc7 {[%clk 0:00:03.9]} 37...
bxc4 {[%clk 0:00:02.3]} 38. Rxc5 {[%clk 0:00:03.8]} 38... Qd6 {[%clk 0:00:02.1]}
39. Ra5 {[%clk 0:00:01]} 39... g6 {[%clk 0:00:01.8]} 40. Be4 {[%clk 0:00:01.2]}
40... Rc8 {[%clk 0:00:02.1]} 0-1

[Event "*** SCC Grand Prix: Titled Tuesday Blitz"]
[Site "Chess.com"]
[Date "2020.07.21"]
[Round "7"]
[White "Jumbo"]
[Black "SantoBlue"]
[Result "0-1"]
[WhiteElo "2851"]
[BlackElo "2752"]
[TimeControl "180+1"]
[EndTime "11:18:04 PDT"]
[Termination "SantoBlue won on time"]

1. Nf3 {[%clk 0:03:00.9]} 1... Nf6 {[%clk 0:02:59.3]} 2. c4 {[%clk 0:03:01.2]}
2... b6 {[%clk 0:02:59.5]} 3. Nc3 {[%clk 0:02:55.9]} 3... Bb7 {[%clk 0:02:59.4]}
4. Qc2 {[%clk 0:02:56.5]} 4... c5 {[%clk 0:02:58.3]} 5. e3 {[%clk 0:02:47.4]}
5... d6 {[%clk 0:02:57.7]} 6. Be2 {[%clk 0:02:45]} 6... Nbd7 {[%clk 0:02:57.9]}
7. d4 {[%clk 0:02:44.1]} 7... cxd4 {[%clk 0:02:51.1]} 8. exd4 {[%clk 0:02:45]}
8... g6 {[%clk 0:02:51.6]} 9. d5 {[%clk 0:02:42.2]} 9... Bg7 {[%clk 0:02:51.6]}
10. O-O {[%clk 0:02:42.7]} 10... O-O {[%clk 0:02:51.8]} 11. Re1 {[%clk
0:02:39.6]} 11... a6 {[%clk 0:02:51.4]} 12. Qd1 {[%clk 0:02:30.7]} 12... Re8
{[%clk 0:02:45.5]} 13. Bg5 {[%clk 0:02:29.3]} 13... Nc5 {[%clk 0:02:41.2]} 14.
Bf1 {[%clk 0:02:26.4]} 14... Qc7 {[%clk 0:02:20.8]} 15. Rc1 {[%clk 0:02:25.1]}
15... Rac8 {[%clk 0:02:07.9]} 16. b4 {[%clk 0:01:59]} 16... Ncd7 {[%clk
0:02:07.4]} 17. Qd2 {[%clk 0:01:59.4]} 17... Qb8 {[%clk 0:02:01.5]} 18. h3
{[%clk 0:01:53.2]} 18... Qa8 {[%clk 0:01:45.1]} 19. a3 {[%clk 0:01:48.3]} 19...
Rc7 {[%clk 0:01:07.8]} 20. Nd4 {[%clk 0:01:08.2]} 20... Qc8 {[%clk 0:01:07.9]}
21. b5 {[%clk 0:01:01.5]} 21... Nc5 {[%clk 0:01:02.5]} 22. Qd1 {[%clk
0:00:45.4]} 22... h6 {[%clk 0:01:01.5]} 23. Be3 {[%clk 0:00:26.9]} 23... Qa8
{[%clk 0:00:58.2]} 24. a4 {[%clk 0:00:23.2]} 24... e5 {[%clk 0:00:48.7]} 25. Nc6
{[%clk 0:00:19.4]} 25... a5 {[%clk 0:00:45.2]} 26. g3 {[%clk 0:00:11.1]} 26...
Nfd7 {[%clk 0:00:41]} 27. Bg2 {[%clk 0:00:07.3]} 27... Kh7 {[%clk 0:00:40.4]}
28. Rb1 {[%clk 0:00:06.7]} 28... f5 {[%clk 0:00:39.8]} 29. Qc2 {[%clk
0:00:06.5]} 29... Rf8 {[%clk 0:00:40]} 30. Ne2 {[%clk 0:00:06.1]} 30... Qe8
{[%clk 0:00:40.2]} 31. f4 {[%clk 0:00:06.1]} 31... e4 {[%clk 0:00:34.6]} 32. Bd4
{[%clk 0:00:06.2]} 32... Nd3 {[%clk 0:00:34.8]} 33. Red1 {[%clk 0:00:05.7]}
33... N7c5 {[%clk 0:00:32.8]} 34. Bxg7 {[%clk 0:00:05.6]} 34... Rxg7 {[%clk
0:00:33.3]} 35. Ned4 {[%clk 0:00:05.1]} 35... g5 {[%clk 0:00:34]} 36. fxg5
{[%clk 0:00:02]} 36... Rxg5 {[%clk 0:00:34.9]} 37. Kh2 {[%clk 0:00:01.1]} 37...
Rfg8 {[%clk 0:00:35.5]} 38. Rg1 {[%clk 0:00:01.6]} 38... Bc8 {[%clk 0:00:24.4]}
39. Rbf1 {[%clk 0:00:01.7]} 39... Qg6 {[%clk 0:00:23]} 40. Qe2 {[%clk
0:00:01.1]} 40... Rg7 {[%clk 0:00:18.2]} 41. Qe3 {[%clk 0:00:01.4]} 41... Rxg3
{[%clk 0:00:17.5]} 42. Qe2 {[%clk 0:00:01.2]} 42... Qg5 {[%clk 0:00:15]} 0-1

[Event "*** SCC Grand Prix: Titled Tuesday Blitz"]
[Site "Chess.com"]
[Date "2020.07.21"]
[Round "7"]
[White "DonBroca"]
[Black "politeplayer"]
[Result "1/2-1/2"]
[WhiteElo "2082"]
[BlackElo "2190"]
[TimeControl "180+1"]
[EndTime "11:18:12 PDT"]
[Termination "Game drawn by repetition"]

1. c4 {[%clk 0:03:00.9]} 1... c5 {[%clk 0:02:57.2]} 2. Nc3 {[%clk 0:03:00.3]}
2... e6 {[%clk 0:02:57.4]} 3. e3 {[%clk 0:03:00.8]} 3... d5 {[%clk 0:02:57.1]}
4. d4 {[%clk 0:03:00.4]} 4... Nf6 {[%clk 0:02:57.6]} 5. Nf3 {[%clk 0:03:00.1]}
5... a6 {[%clk 0:02:56]} 6. a4 {[%clk 0:02:58.7]} 6... Nc6 {[%clk 0:02:55.7]} 7.
Be2 {[%clk 0:02:56.7]} 7... cxd4 {[%clk 0:02:55.7]} 8. exd4 {[%clk 0:02:51.5]}
8... dxc4 {[%clk 0:02:53.1]} 9. Bxc4 {[%clk 0:02:49.8]} 9... Bd6 {[%clk
0:02:53.4]} 10. O-O {[%clk 0:02:47.7]} 10... O-O {[%clk 0:02:52.3]} 11. Bg5
{[%clk 0:02:47.2]} 11... Qc7 {[%clk 0:02:43.4]} 12. Bxf6 {[%clk 0:02:20.2]}
12... gxf6 {[%clk 0:02:43.3]} 13. Bb3 {[%clk 0:02:17]} 13... Kh8 {[%clk
0:02:37.9]} 14. Rc1 {[%clk 0:02:12.6]} 14... Rg8 {[%clk 0:02:27.9]} 15. Ne4
{[%clk 0:02:01]} 15... Be7 {[%clk 0:02:15.7]} 16. d5 {[%clk 0:01:07.1]} 16...
exd5 {[%clk 0:02:15.4]} 17. Qxd5 {[%clk 0:01:06.8]} 17... Be6 {[%clk 0:02:08.1]}
18. Qd3 {[%clk 0:01:05.3]} 18... Rad8 {[%clk 0:02:03.3]} 19. Qe3 {[%clk
0:01:02]} 19... Bxb3 {[%clk 0:01:53.8]} 20. Qxb3 {[%clk 0:01:00.2]} 20... Qf4
{[%clk 0:01:52.4]} 21. Ng3 {[%clk 0:00:50.4]} 21... Ne5 {[%clk 0:01:41.9]} 22.
Nxe5 {[%clk 0:00:33]} 22... fxe5 {[%clk 0:01:39.7]} 23. Qxb7 {[%clk 0:00:31.2]}
23... Bf8 {[%clk 0:01:14.7]} 24. Qxa6 {[%clk 0:00:17.4]} 24... Rd2 {[%clk
0:01:09.3]} 25. Qc6 {[%clk 0:00:12.3]} 25... Be7 {[%clk 0:00:48.3]} 26. Qe4
{[%clk 0:00:09.8]} 26... Rxf2 {[%clk 0:00:31]} 27. Rxf2 {[%clk 0:00:03.5]} 27...
Qxc1+ {[%clk 0:00:29.4]} 28. Rf1 {[%clk 0:00:03.2]} 28... Bc5+ {[%clk
0:00:28.8]} 29. Kh1 {[%clk 0:00:02.5]} 29... Qh6 {[%clk 0:00:20.1]} 30. Qxe5+
{[%clk 0:00:02.4]} 30... Qg7 {[%clk 0:00:15.5]} 31. Qxc5 {[%clk 0:00:01.5]}
31... Qxb2 {[%clk 0:00:15.2]} 32. Qf2 {[%clk 0:00:01.4]} 32... Qg7 {[%clk
0:00:12.3]} 33. Qxf7 {[%clk 0:00:01.3]} 33... Qxf7 {[%clk 0:00:10.8]} 34. Rxf7
{[%clk 0:00:02.2]} 34... Ra8 {[%clk 0:00:11.1]} 35. h3 {[%clk 0:00:02.7]} 35...
Rxa4 {[%clk 0:00:10.7]} 36. Kh2 {[%clk 0:00:03.2]} 36... h5 {[%clk 0:00:10.9]}
37. Rf2 {[%clk 0:00:03.1]} 37... h4 {[%clk 0:00:10.9]} 38. Ne2 {[%clk
0:00:03.7]} 38... Ra3 {[%clk 0:00:11]} 39. Rf3 {[%clk 0:00:03.8]} 39... Ra2
{[%clk 0:00:11.9]} 40. Rf2 {[%clk 0:00:03.9]} 40... Rd2 {[%clk 0:00:11.9]} 41.
Nf4 {[%clk 0:00:04.1]} 41... Rxf2 {[%clk 0:00:11.6]} 42. Ng6+ {[%clk 0:00:04.6]}
42... Kh7 {[%clk 0:00:11]} 43. Nxh4 {[%clk 0:00:05.5]} 43... Rc2 {[%clk
0:00:10.8]} 44. Kg3 {[%clk 0:00:04.6]} 44... Ra2 {[%clk 0:00:10.6]} 45. Nf3
{[%clk 0:00:04.9]} 45... Ra3 {[%clk 0:00:10.7]} 46. Kf4 {[%clk 0:00:04.2]} 46...
Ra4+ {[%clk 0:00:10.7]} 47. Kg3 {[%clk 0:00:04.2]} 47... Ra2 {[%clk 0:00:10.6]}
48. Nh4 {[%clk 0:00:03.8]} 48... Ra3+ {[%clk 0:00:10.5]} 49. Nf3 {[%clk
0:00:04.2]} 49... Ra2 {[%clk 0:00:10.7]} 50. Nh4 {[%clk 0:00:04.6]} 50... Ra3+
{[%clk 0:00:10.9]} 51. Nf3 {[%clk 0:00:05]} 51... Ra2 {[%clk 0:00:11.1]} 1/2-1/2

[Event "*** SCC Grand Prix: Titled Tuesday Blitz"]
[Site "Chess.com"]
[Date "2020.07.21"]
[Round "7"]
[White "albano87"]
[Black "chargemax23"]
[Result "1-0"]
[WhiteElo "2416"]
[BlackElo "2596"]
[TimeControl "180+1"]
[EndTime "11:18:14 PDT"]
[Termination "albano87 won on time"]

1. d4 {[%clk 0:03:00.8]} 1... Nf6 {[%clk 0:02:59.1]} 2. Nf3 {[%clk 0:03:00.2]}
2... g6 {[%clk 0:02:58.5]} 3. g3 {[%clk 0:02:56.7]} 3... Bg7 {[%clk 0:02:58]} 4.
Bg2 {[%clk 0:02:56.8]} 4... O-O {[%clk 0:02:58.2]} 5. O-O {[%clk 0:02:55]} 5...
d5 {[%clk 0:02:58.7]} 6. c4 {[%clk 0:02:53.4]} 6... c6 {[%clk 0:02:58.6]} 7.
cxd5 {[%clk 0:02:52.1]} 7... cxd5 {[%clk 0:02:57.7]} 8. Nc3 {[%clk 0:02:52.1]}
8... Nc6 {[%clk 0:02:57.2]} 9. Ne5 {[%clk 0:02:50.9]} 9... Na5 {[%clk
0:02:54.7]} 10. Bf4 {[%clk 0:02:48.4]} 10... a6 {[%clk 0:02:53.4]} 11. Qd2
{[%clk 0:02:47]} 11... Be6 {[%clk 0:02:35.1]} 12. Bh6 {[%clk 0:02:45]} 12... Rc8
{[%clk 0:02:31.8]} 13. Bxg7 {[%clk 0:02:45.7]} 13... Kxg7 {[%clk 0:02:31.6]} 14.
Rac1 {[%clk 0:02:31.9]} 14... b5 {[%clk 0:02:26.2]} 15. b3 {[%clk 0:02:30.2]}
15... Qb6 {[%clk 0:02:24.2]} 16. e3 {[%clk 0:02:25.8]} 16... Nb7 {[%clk
0:02:19.9]} 17. f3 {[%clk 0:02:14.5]} 17... h5 {[%clk 0:02:17.7]} 18. Nd3 {[%clk
0:02:13.6]} 18... Rfd8 {[%clk 0:02:04.8]} 19. Nf4 {[%clk 0:02:07.7]} 19... Bf5
{[%clk 0:02:02.7]} 20. h3 {[%clk 0:02:07.6]} 20... Qd6 {[%clk 0:01:23]} 21. g4
{[%clk 0:02:06.5]} 21... hxg4 {[%clk 0:01:22.8]} 22. hxg4 {[%clk 0:02:07.4]}
22... Bd7 {[%clk 0:01:22.9]} 23. g5 {[%clk 0:02:00]} 23... Nh7 {[%clk
0:01:22.5]} 24. e4 {[%clk 0:01:49.9]} 24... dxe4 {[%clk 0:01:09.7]} 25. fxe4
{[%clk 0:01:50.8]} 25... e5 {[%clk 0:01:08.9]} 26. Nfd5 {[%clk 0:01:48.5]} 26...
Be6 {[%clk 0:01:00]} 27. Ne2 {[%clk 0:01:37.1]} 27... Bxd5 {[%clk 0:00:31.7]}
28. exd5 {[%clk 0:01:36]} 28... Qe7 {[%clk 0:00:30.3]} 29. dxe5 {[%clk
0:01:12.7]} 29... Qxe5 {[%clk 0:00:29.5]} 30. Rxc8 {[%clk 0:00:45.2]} 30... Rxc8
{[%clk 0:00:29]} 31. Nd4 {[%clk 0:00:41.6]} 31... Nd8 {[%clk 0:00:11]} 32. Nf3
{[%clk 0:00:35.1]} 32... Qc3 {[%clk 0:00:09.4]} 33. Qf4 {[%clk 0:00:33.4]} 33...
Qc5+ {[%clk 0:00:08.4]} 34. Kh1 {[%clk 0:00:30.3]} 34... Qxd5 {[%clk 0:00:07.6]}
35. Ne5 {[%clk 0:00:27.4]} 35... Qe6 {[%clk 0:00:07.6]} 36. Qd4 {[%clk
0:00:23.6]} 36... Kg8 {[%clk 0:00:06.7]} 37. Nd7 {[%clk 0:00:20.7]} 37... Qe7
{[%clk 0:00:02.7]} 38. Bh3 {[%clk 0:00:17.3]} 38... Ne6 {[%clk 0:00:02.6]} 39.
Ne5 {[%clk 0:00:06.2]} 39... Nxd4 {[%clk 0:00:02.3]} 40. Nxg6 {[%clk 0:00:06.2]}
40... fxg6 {[%clk 0:00:01.8]} 41. Be6+ {[%clk 0:00:07.1]} 41... Qxe6 {[%clk
0:00:01.4]} 42. Rf8+ {[%clk 0:00:08]} 1-0

[Event "*** SCC Grand Prix: Titled Tuesday Blitz"]
[Site "Chess.com"]
[Date "2020.07.21"]
[Round "7"]
[White "JoliyRoger"]
[Black "djano"]
[Result "1/2-1/2"]
[WhiteElo "2320"]
[BlackElo "2454"]
[TimeControl "180+1"]
[EndTime "11:18:14 PDT"]
[Termination "Game drawn by repetition"]

1. Nf3 {[%clk 0:03:00.9]} 1... d5 {[%clk 0:02:58.2]} 2. c4 {[%clk 0:03:00.9]}
2... c6 {[%clk 0:02:57.9]} 3. e3 {[%clk 0:03:00.9]} 3... Nf6 {[%clk 0:02:58.2]}
4. b3 {[%clk 0:03:01.3]} 4... Bg4 {[%clk 0:02:54]} 5. Bb2 {[%clk 0:03:01.5]}
5... e6 {[%clk 0:02:54.5]} 6. d4 {[%clk 0:03:02]} 6... Nbd7 {[%clk 0:02:53.5]}
7. Nbd2 {[%clk 0:03:02.4]} 7... Bd6 {[%clk 0:02:53.6]} 8. Bd3 {[%clk 0:03:02.8]}
8... Qe7 {[%clk 0:02:50.6]} 9. Qc2 {[%clk 0:03:02.8]} 9... a5 {[%clk 0:02:37.9]}
10. O-O {[%clk 0:03:01.2]} 10... Bh5 {[%clk 0:02:29.8]} 11. Ne5 {[%clk
0:02:34.3]} 11... Bg6 {[%clk 0:02:24.9]} 12. f4 {[%clk 0:02:19.9]} 12... Bxd3
{[%clk 0:02:23]} 13. Qxd3 {[%clk 0:02:20.3]} 13... Ba3 {[%clk 0:02:13.8]} 14.
Bxa3 {[%clk 0:02:09.7]} 14... Qxa3 {[%clk 0:02:14.7]} 15. e4 {[%clk 0:01:11.7]}
15... dxe4 {[%clk 0:01:58.8]} 16. Nxe4 {[%clk 0:01:11.7]} 16... Rd8 {[%clk
0:01:43]} 17. Nxd7 {[%clk 0:01:06.4]} 17... Rxd7 {[%clk 0:01:34.6]} 18. Nxf6+
{[%clk 0:01:03.9]} 18... gxf6 {[%clk 0:01:35.5]} 19. Qe3 {[%clk 0:00:43.5]}
19... Qb2 {[%clk 0:01:24.9]} 20. Rad1 {[%clk 0:00:43.4]} 20... Rg8 {[%clk
0:01:20.2]} 21. Rf2 {[%clk 0:00:41.9]} 21... Qa3 {[%clk 0:01:15.3]} 22. f5
{[%clk 0:00:40.3]} 22... e5 {[%clk 0:01:15.4]} 23. Rfd2 {[%clk 0:00:36.8]} 23...
Qe7 {[%clk 0:00:52]} 24. dxe5 {[%clk 0:00:36.4]} 24... Rxd2 {[%clk 0:00:52]} 25.
Qxd2 {[%clk 0:00:36.9]} 25... fxe5 {[%clk 0:00:48.6]} 26. Qxa5 {[%clk
0:00:37.1]} 26... f6 {[%clk 0:00:31.3]} 27. c5 {[%clk 0:00:30.2]} 27... Kf7
{[%clk 0:00:24.6]} 28. Qc3 {[%clk 0:00:28.6]} 28... Rd8 {[%clk 0:00:21.7]} 29.
Qc4+ {[%clk 0:00:28.4]} 29... Kg7 {[%clk 0:00:21.8]} 30. Rxd8 {[%clk 0:00:25.2]}
30... Qxd8 {[%clk 0:00:22.7]} 31. h3 {[%clk 0:00:25.3]} 31... Qd2 {[%clk
0:00:22.1]} 32. Kh2 {[%clk 0:00:25.6]} 32... Qe3 {[%clk 0:00:18.9]} 33. a4
{[%clk 0:00:24.3]} 33... e4 {[%clk 0:00:18.8]} 34. a5 {[%clk 0:00:15.8]} 34...
Qf4+ {[%clk 0:00:18.8]} 35. Kg1 {[%clk 0:00:14.8]} 35... Qe3+ {[%clk 0:00:18.7]}
36. Kf1 {[%clk 0:00:14.4]} 36... Qf4+ {[%clk 0:00:15.5]} 37. Ke2 {[%clk
0:00:13.9]} 37... Qxf5 {[%clk 0:00:15.1]} 38. Ke3 {[%clk 0:00:13.9]} 38... Qg5+
{[%clk 0:00:14.1]} 39. Kxe4 {[%clk 0:00:13.7]} 39... Qxg2+ {[%clk 0:00:14.5]}
40. Kd3 {[%clk 0:00:13.8]} 40... Qxh3+ {[%clk 0:00:13.8]} 41. Kc2 {[%clk
0:00:13.7]} 41... Qh2+ {[%clk 0:00:13.4]} 42. Kc3 {[%clk 0:00:13.4]} 42... Qg3+
{[%clk 0:00:12.5]} 43. Kc2 {[%clk 0:00:13.6]} 43... Qf2+ {[%clk 0:00:12.7]} 44.
Kb1 {[%clk 0:00:12.3]} 44... Qe1+ {[%clk 0:00:12.7]} 45. Kc2 {[%clk 0:00:10.9]}
45... Qxa5 {[%clk 0:00:12.5]} 46. Qg4+ {[%clk 0:00:11.4]} 46... Kf8 {[%clk
0:00:12]} 47. Qc8+ {[%clk 0:00:11.2]} 47... Kg7 {[%clk 0:00:12.4]} 48. Qg4+
{[%clk 0:00:10.9]} 48... Kh6 {[%clk 0:00:12]} 49. Qh4+ {[%clk 0:00:10.7]} 49...
Kg6 {[%clk 0:00:12.3]} 50. Qg4+ {[%clk 0:00:11.1]} 50... Kf7 {[%clk 0:00:10.9]}
51. Qd7+ {[%clk 0:00:11.3]} 51... Kg6 {[%clk 0:00:10.2]} 52. Qg4+ {[%clk
0:00:11.3]} 52... Kh6 {[%clk 0:00:10.6]} 53. Qh4+ {[%clk 0:00:11.4]} 53... Kg7
{[%clk 0:00:10.7]} 54. Qg4+ {[%clk 0:00:11.6]} 1/2-1/2

[Event "*** SCC Grand Prix: Titled Tuesday Blitz"]
[Site "Chess.com"]
[Date "2020.07.21"]
[Round "7"]
[White "anon569"]
[Black "RaphCamora"]
[Result "1-0"]
[WhiteElo "2321"]
[BlackElo "2434"]
[TimeControl "180+1"]
[EndTime "11:18:14 PDT"]
[Termination "anon569 won by checkmate"]

1. e4 {[%clk 0:03:00.9]} 1... c5 {[%clk 0:02:58.9]} 2. Nf3 {[%clk 0:02:59.9]}
2... Nc6 {[%clk 0:02:58.4]} 3. d4 {[%clk 0:02:59.3]} 3... cxd4 {[%clk
0:02:58.4]} 4. Nxd4 {[%clk 0:02:59.8]} 4... Nf6 {[%clk 0:02:59.3]} 5. Nc3 {[%clk
0:02:59.8]} 5... e5 {[%clk 0:02:59.6]} 6. Ndb5 {[%clk 0:02:58.7]} 6... d6 {[%clk
0:02:59.8]} 7. Bg5 {[%clk 0:02:55.9]} 7... a6 {[%clk 0:02:59.9]} 8. Na3 {[%clk
0:02:55.2]} 8... b5 {[%clk 0:03:00.4]} 9. Nd5 {[%clk 0:02:54.2]} 9... Be7 {[%clk
0:02:55.6]} 10. Bxf6 {[%clk 0:02:48.1]} 10... Bxf6 {[%clk 0:02:56.5]} 11. c3
{[%clk 0:02:48.6]} 11... Rb8 {[%clk 0:02:54.5]} 12. Nc2 {[%clk 0:02:48.6]} 12...
Bg5 {[%clk 0:02:52.5]} 13. Bd3 {[%clk 0:02:48.5]} 13... O-O {[%clk 0:02:49.2]}
14. O-O {[%clk 0:02:46.4]} 14... a5 {[%clk 0:02:49.2]} 15. Qe2 {[%clk
0:02:44.6]} 15... b4 {[%clk 0:02:47.4]} 16. Bb5 {[%clk 0:02:30]} 16... Bd7
{[%clk 0:02:30.1]} 17. Bxc6 {[%clk 0:02:29.4]} 17... Bxc6 {[%clk 0:02:28.5]} 18.
c4 {[%clk 0:02:29.1]} 18... Bxd5 {[%clk 0:02:22.2]} 19. cxd5 {[%clk 0:02:06.9]}
19... Qc7 {[%clk 0:02:20.2]} 20. Ne3 {[%clk 0:02:04.9]} 20... Rfc8 {[%clk
0:02:19.4]} 21. Qg4 {[%clk 0:01:59]} 21... h6 {[%clk 0:01:48.7]} 22. h4 {[%clk
0:01:51.5]} 22... Bxe3 {[%clk 0:01:47.2]} 23. fxe3 {[%clk 0:01:51]} 23... Qc5
{[%clk 0:01:47.2]} 24. Rf3 {[%clk 0:01:48]} 24... Rc7 {[%clk 0:01:43.8]} 25.
Raf1 {[%clk 0:01:43.2]} 25... Rf8 {[%clk 0:01:26.3]} 26. h5 {[%clk 0:01:41.6]}
26... Qa7 {[%clk 0:00:59.5]} 27. Rg3 {[%clk 0:01:30.1]} 27... f6 {[%clk
0:00:56]} 28. Qe6+ {[%clk 0:01:29.9]} 28... Kh8 {[%clk 0:00:56]} 29. Qxd6 {[%clk
0:01:29.8]} 29... Rcf7 {[%clk 0:00:38]} 30. Rc1 {[%clk 0:01:17.5]} 30... Qb7
{[%clk 0:00:23.9]} 31. Rf3 {[%clk 0:01:08.8]} 31... Qb5 {[%clk 0:00:23.4]} 32.
Qc5 {[%clk 0:00:58.4]} 32... Qe2 {[%clk 0:00:22.9]} 33. Rf2 {[%clk 0:00:57.1]}
33... Qd3 {[%clk 0:00:22.6]} 34. Rc4 {[%clk 0:00:44.2]} 34... Qd1+ {[%clk
0:00:20.6]} 35. Rf1 {[%clk 0:00:40.9]} 35... Qxh5 {[%clk 0:00:21.5]} 36. Qxa5
{[%clk 0:00:39.7]} 36... f5 {[%clk 0:00:21.3]} 37. Rcc1 {[%clk 0:00:22.3]} 37...
fxe4 {[%clk 0:00:20.6]} 38. Rxf7 {[%clk 0:00:15.8]} 38... Qxf7 {[%clk
0:00:21.5]} 39. Qxb4 {[%clk 0:00:07.4]} 39... Qf2+ {[%clk 0:00:21]} 40. Kh1
{[%clk 0:00:07.5]} 40... Rf5 {[%clk 0:00:17.7]} 41. Rc8+ {[%clk 0:00:03]} 41...
Kh7 {[%clk 0:00:17.3]} 42. Qxe4 {[%clk 0:00:03.6]} 42... g6 {[%clk 0:00:11.2]}
43. Rc7+ {[%clk 0:00:03.7]} 43... Kg8 {[%clk 0:00:10.2]} 44. Rc8+ {[%clk
0:00:04.3]} 44... Kf7 {[%clk 0:00:10.3]} 45. Rc7+ {[%clk 0:00:04.6]} 45... Ke8
{[%clk 0:00:10.4]} 46. Qa4+ {[%clk 0:00:04.6]} 46... Kf8 {[%clk 0:00:09.2]} 47.
Qa8# {[%clk 0:00:04.5]} 1-0